fUSD/lending_fUSD_20250226
["ID","MTS","AMOUNT","RATE_DAILY","PERIOD"]
[354583909,1740581452548,-500.0,0.00038356,14]
[354583910,1740581452557,-1563.23,0.00038356,14]
[354583911,1740581452566,-500.0,0.00038356,14]
[354583912,1740581452575,-1402.76,0.00038356,14]
[354583913,1740581452584,-500.0,0.00038356,14]
[354583914,1740581452594,-500.0,0.00038356,14]
[354583915,1740581452604,-500.0,0.00038356,14]
[354583916,1740581452613,-741.55,0.00038356,14]
[354583917,1740581452622,-2069.87,0.00038356,14]
[354583918,1740581452632,-500.0,0.00038356,14]
[354583919,1740581452642,-500.0,0.00038356,14]
[354583920,1740581452651,-1625.96,0.00038356,14]
[354583921,1740581452660,-829.49,0.00038356,14]
[354583922,1740581452670,-500.0,0.00038356,2]
[354583923,1740581452679,-1063.88,0.00038356,14]
[354583924,1740581452688,-2744.56,0.00038356,14]
[354583925,1740581452697,-500.0,0.00038356,14]
[354583926,1740581452706,-1358.3,0.00038356,14]
[354583927,1740581452715,-3138.87,0.00038356,14]
[354583928,1740581452724,-1737.84,0.00038356,14]
[354583929,1740581452733,-246.97870753,0.00038356,14]
[354583930,1740581452743,-500.0,0.00038356,14]
[354583931,1740581452752,-1413.33,0.00038356,14]
[354583932,1740581452762,-1273.31,0.00038356,14]
[354583933,1740581452771,-999.88,0.00038356,14]
[354583934,1740581452781,-500.0,0.00038356,14]
[354583935,1740581452790,-500.0,0.00038373,5]
[354583936,1740581452799,-500.0,0.00038373,5]
[354583937,1740581452809,-500.0,0.00038373,5]
[354583938,1740581452819,-916.95,0.00038398,14]
[354583939,1740581452829,-1096.7287,0.00038399,2]
[354583940,1740581452838,-607.725,0.0003841,2]
[354583941,1740581452848,-569.0,0.0003841,2]
[354583942,1740581452859,-1664.0,0.0003841,2]
[354583943,1740581452869,-639.0,0.0003841,2]
[354583944,1740581452879,-1425.0,0.0003841,2]
[354583945,1740581452888,-4034.0,0.0003841,2]
[354583946,1740581452898,-3922.0,0.0003841,2]
[354583947,1740581452908,-1010.0,0.0003841,2]
[354583948,1740581452918,-150.0,0.0003841,2]
[354583949,1740581452929,-1000.0,0.00038415,7]
[354583950,1740581452938,-161.3,0.00038423,2]
[354583951,1740581452948,-150.27,0.00038443,2]
[354583952,1740581452958,-1479.18,0.00038499,14]
[354583953,1740581452968,-500.0,0.00038499,14]
[354583954,1740581452978,-500.0,0.00038499,14]
[354583955,1740581452987,-2000.0,0.00038546,4]
[354583956,1740581452997,-1000.0,0.00038588,7]
[354583957,1740581453007,-500.0,0.00038625,14]
[354583958,1740581453016,-500.0,0.00038625,14]
[354583959,1740581453025,-500.0,0.00038625,14]
[354583960,1740581453036,-500.0,0.00038625,14]
[354583961,1740581453046,-500.0,0.00038625,14]
[354583962,1740581453055,-1951.17,0.00038625,14]
[354583963,1740581453064,-506.87,0.00038625,14]
[354583964,1740581453073,-500.0,0.00038625,14]
[354583965,1740581453082,-842.08,0.00038625,14]
[354583966,1740581453091,-872.17,0.00038625,14]
[354583967,1740581453100,-500.0,0.00038625,14]
[354583968,1740581453111,-1342.82,0.00038625,14]
[354583969,1740581453121,-1619.06,0.00038625,14]
[354583970,1740581453130,-1724.72,0.00038625,14]
[354583971,1740581453139,-500.0,0.00038625,14]
[354583972,1740581453148,-500.0,0.00038625,14]
[354583973,1740581453157,-1483.41,0.00038625,14]
[354583974,1740581453166,-500.0,0.00038625,14]
[354583975,1740581453175,-500.0,0.00038625,14]
[354583976,1740581453184,-500.0,0.00038625,14]
[354583977,1740581453194,-1020.25,0.00038625,14]
[354583978,1740581453203,-946.87,0.00038625,14]
[354583979,1740581453213,-500.0,0.00038625,14]
[354583980,1740581453222,-500.0,0.00038625,14]
[354583981,1740581453231,-500.0,0.00038625,14]
[354583982,1740581453240,-1062.77,0.00038625,14]
[354583983,1740581453249,-500.0,0.00038625,14]
[354583984,1740581453259,-928.89,0.00038625,14]
[354583985,1740581453267,-951.21,0.00038625,14]
[354583986,1740581453276,-1450.07,0.00038625,14]
[354583987,1740581453286,-500.0,0.00038625,14]
[354583988,1740581453295,-500.0,0.00038625,14]
[354583989,1740581453305,-1924.76,0.00038625,14]
[354583990,1740581453314,-1332.36,0.00038625,14]
[354583991,1740581453323,-1495.11,0.00038625,14]
[354583992,1740581453332,-500.0,0.00038625,14]
[354583993,1740581453341,-2133.11,0.00038625,14]
[354583994,1740581453351,-1097.09,0.00038625,14]
[354583995,1740581453361,-3727.41,0.00038625,14]
[354583996,1740581453370,-1389.63,0.00038625,14]
[354583997,1740581453379,-2437.92,0.00038625,14]
[354583998,1740581453388,-1543.52,0.00038625,14]
[354583999,1740581453397,-1077.06,0.00038625,14]
[354584000,1740581453407,-1011.66,0.00038625,14]
[354584001,1740581453415,-916.95,0.00038625,14]
[354584002,1740581453425,-2813.58,0.00038625,14]
[354584003,1740581453434,-1735.9,0.00038625,14]
[354584004,1740581453443,-600.03,0.00038625,14]
[354584005,1740581453452,-1136.06,0.00038625,14]
[354584006,1740581453461,-3380.89,0.00038625,14]
[354584007,1740581453470,-1483.52,0.00038625,14]
[354584008,1740581453479,-1167.33,0.00038625,14]
[354584009,1740581453487,-611.77,0.00038625,14]
[354584010,1740581453496,-1339.85,0.00038625,14]
[354584011,1740581453505,-500.0,0.00038625,14]
[354584012,1740581453514,-580.54,0.00038625,14]
[354584013,1740581453523,-500.0,0.00038625,14]
[354584014,1740581453532,-1419.06,0.00038625,14]
[354584015,1740581453541,-500.0,0.00038626,14]
[354584016,1740581453551,-500.0,0.00038626,14]
[354584017,1740581453560,-500.0,0.00038626,14]
[354584018,1740581453569,-500.0,0.00038626,14]
[354584019,1740581453578,-500.0,0.00038626,14]
[354584020,1740581453587,-500.0,0.00038626,14]
[354584021,1740581453596,-500.0,0.00038626,14]
[354584022,1740581453606,-500.0,0.00038626,14]
[354584023,1740581453615,-500.0,0.00038626,14]
[354584024,1740581453624,-516.54,0.00038626,14]
[354584025,1740581453634,-1056.33,0.00038626,14]
[354584026,1740581453643,-984.69,0.00038626,14]
[354584027,1740581453652,-1093.58,0.00038626,14]
[354584028,1740581453661,-300.0,0.00038626,14]
[354584029,1740581453670,-1006.63,0.00038626,14]
[354584030,1740581453679,-500.0,0.00038626,14]
[354584031,1740581453688,-500.0,0.00038626,14]
[354584032,1740581453697,-500.0,0.00038626,14]
[354584033,1740581453706,-422.63556849,0.00038626,14]
[354584034,1740581453715,-645.32,0.00038626,14]
[354584035,1740581453724,-500.0,0.00038626,14]
[354584036,1740581453733,-500.0,0.00038626,14]
[354584037,1740581453743,-500.0,0.00038626,14]
[354584038,1740581453753,-500.0,0.00038626,14]
[354584039,1740581453762,-500.0,0.00038626,14]
[354584040,1740581453771,-500.0,0.00038626,14]
[354584041,1740581453781,-500.0,0.00038626,14]
[354584042,1740581453790,-809.9,0.00038626,14]
[354584043,1740581453799,-500.0,0.00038626,14]
[354584044,1740581453808,-500.0,0.00038626,14]
[354584045,1740581453818,-500.0,0.00038626,14]
[354584046,1740581453827,-500.0,0.00038626,14]
[354584047,1740581453837,-500.0,0.00038626,14]
[354584048,1740581453846,-500.0,0.00038626,14]
[354584049,1740581453857,-703.81,0.00038626,14]
[354584050,1740581453866,-500.0,0.00038626,14]
[354584051,1740581453875,-500.0,0.00038626,14]
[354584052,1740581453884,-1243.24,0.00038626,14]
[354584053,1740581453893,-500.0,0.00038626,14]
[354584054,1740581453903,-1346.53,0.00038626,14]
[354584055,1740581453913,-500.0,0.00038626,14]
[354584056,1740581453922,-500.0,0.00038626,14]
[354584057,1740581453932,-500.0,0.00038626,14]
[354584058,1740581453941,-500.0,0.00038626,14]
[354584059,1740581453951,-500.0,0.00038626,14]
[354584060,1740581453960,-960.57,0.00038626,14]
[354584061,1740581453972,-343.49720496,0.00038626,14]
[354584062,1740581453982,-907.88,0.00038626,14]
[354584063,1740581453991,-500.0,0.00038626,14]
[354584064,1740581454000,-500.0,0.00038626,14]
[354584065,1740581454011,-400.6355094,0.00038626,14]
[354584066,1740581454021,-523.75,0.00038626,14]
[354584067,1740581454030,-831.27,0.00038626,14]
[354584068,1740581454039,-500.0,0.00038626,14]
[354584069,1740581454050,-737.97,0.00038626,14]
[354584070,1740581454059,-500.0,0.00038626,14]
[354584071,1740581454068,-802.12,0.00038626,14]
[354584072,1740581454077,-500.0,0.00038626,14]
[354584073,1740581454087,-512.38,0.00038626,14]
[354584074,1740581454096,-500.0,0.00038626,14]
[354584075,1740581454106,-500.0,0.00038626,14]
[354584076,1740581454115,-500.0,0.00038626,14]
[354584077,1740581454124,-500.0,0.00038626,14]
[354584078,1740581454134,-606.91,0.00038626,14]
[354584079,1740581454143,-534.93,0.00038626,14]
[354584080,1740581454153,-500.0,0.00038626,14]
[354584081,1740581454164,-500.0,0.00038626,14]
[354584082,1740581454174,-500.0,0.00038626,14]
[354584083,1740581454183,-500.0,0.00038626,14]
[354584084,1740581454192,-500.0,0.00038626,14]
[354584085,1740581454201,-500.0,0.00038626,14]
[354584086,1740581454210,-500.0,0.00038626,14]
[354584087,1740581454219,-649.48,0.00038626,14]
[354584088,1740581454228,-785.34,0.00038626,14]
[354584089,1740581454238,-500.0,0.00038626,14]
[354584090,1740581454247,-630.65,0.00038626,14]
[354584091,1740581454256,-500.0,0.00038626,14]
[354584092,1740581454265,-630.58,0.00038626,14]
[354584093,1740581454274,-500.0,0.00038626,14]
[354584094,1740581454283,-1122.08,0.00038626,14]
[354584095,1740581454292,-500.0,0.00038626,14]
[354584096,1740581454302,-500.01,0.00038626,14]
[354584097,1740581454311,-500.0,0.00038626,14]
[354584098,1740581454320,-500.0,0.00038626,14]
[354584099,1740581454330,-500.0,0.00038626,14]
[354584100,1740581454339,-527.12458805,0.00038626,14]
[354584101,1740581454348,-1263.59,0.00038626,14]
[354584102,1740581454359,-500.0,0.00038626,14]
[354584103,1740581454368,-615.4,0.00038626,14]
[354584104,1740581454377,-1009.87,0.00038626,14]
[354584105,1740581454386,-1674.95,0.00038626,14]
[354584106,1740581454396,-500.0,0.00038626,14]
[354584107,1740581454405,-500.0,0.00038626,14]
[354584108,1740581454414,-500.0,0.00038626,14]
[354584109,1740581454424,-500.0,0.00038626,14]
[354584110,1740581454433,-1185.51,0.00038626,14]
[354584111,1740581454443,-500.0,0.00038626,14]
[354584112,1740581454452,-545.74,0.00038626,14]
[354584113,1740581454462,-1285.94,0.00038626,14]
[354584114,1740581454471,-500.0,0.00038626,14]
[354584115,1740581454481,-1014.05,0.00038626,14]
[354584116,1740581454490,-673.9,0.00038626,14]
[354584117,1740581454499,-624.88954738,0.00038626,14]
[354584118,1740581454510,-1532.75,0.00038626,14]
[354584119,1740581454519,-500.0,0.00038626,14]
[354584120,1740581454530,-521.09,0.00038626,14]
[354584121,1740581454540,-787.04,0.00038626,14]
[354584122,1740581454549,-930.36,0.00038626,14]
[354584123,1740581454558,-916.95,0.00038629,14]
[354584124,1740581454568,-916.95,0.00038629,14]
[354584125,1740581454576,-760.447809,0.0003863,14]
[354584126,1740581454585,-1572.59382,0.0003863,14]
[354584127,1740581454595,-500.0,0.0003863,14]
[354584128,1740581454604,-1243.34,0.0003863,14]
[354584129,1740581454614,-506.46468501,0.0003863,14]
[354584130,1740581454623,-685.3,0.0003863,14]
[354584131,1740581454632,-500.0,0.0003863,14]
[354584132,1740581454642,-1212.52,0.0003863,14]
[354584133,1740581454651,-469.06954765,0.0003863,14]
[354584134,1740581454660,-500.0,0.0003863,14]
[354584135,1740581454670,-500.0,0.0003863,14]
[354584136,1740581454679,-500.0,0.0003863,14]
[354584137,1740581454688,-500.0,0.0003863,14]
[354584138,1740581454697,-500.0,0.0003863,14]
[354584139,1740581454707,-500.0,0.0003863,14]
[354584140,1740581454716,-500.0,0.0003863,14]
[354584141,1740581454725,-500.0,0.0003863,14]
[354584142,1740581454734,-1005.92,0.0003863,14]
[354584143,1740581454743,-500.0,0.0003863,14]
[354584144,1740581454753,-500.0,0.0003863,14]
[354584145,1740581454762,-500.0,0.0003863,14]
[354584146,1740581454771,-1924.23,0.0003863,14]
[354584147,1740581454781,-500.0,0.0003863,14]
[354584148,1740581454790,-394.82452189,0.0003863,14]
[354584149,1740581454799,-807.81,0.0003863,14]
[354584150,1740581454808,-500.0,0.0003863,14]
[354584151,1740581454817,-500.0,0.0003863,14]
[354584152,1740581454827,-666.29,0.0003863,14]
[354584153,1740581454836,-500.0,0.0003863,14]
[354584154,1740581454846,-601.46,0.0003863,14]
[354584155,1740581454857,-500.0,0.0003863,14]
[354584156,1740581454866,-571.62,0.0003863,14]
[354584157,1740581454876,-551.67,0.0003863,14]
[354584158,1740581454886,-529.18,0.0003863,14]
[354584159,1740581454895,-500.0,0.0003863,14]
[354584160,1740581454905,-500.0,0.0003863,14]
[354584161,1740581454914,-500.0,0.0003863,14]
[354584162,1740581454923,-500.0,0.0003863,14]
[354584163,1740581454933,-566.04,0.0003863,14]
[354584164,1740581454943,-500.0,0.0003863,14]
[354584165,1740581454952,-500.0,0.0003863,14]
[354584166,1740581454962,-500.0,0.0003863,14]
[354584167,1740581454975,-541.02,0.0003863,14]
[354584168,1740581454985,-500.0,0.0003863,14]
[354584169,1740581454995,-255.57723115,0.0003863,14]
[354584170,1740581455004,-500.0,0.0003863,14]
[354584171,1740581455016,-527.79,0.0003863,14]
[354584172,1740581455026,-500.0,0.0003863,14]
[354584173,1740581455036,-646.33,0.0003863,14]
[354584174,1740581455047,-936.73,0.0003863,14]
[354584175,1740581455059,-521.96,0.0003863,14]
[354584176,1740581455068,-500.0,0.0003863,14]
[354584177,1740581455078,-277.1401688,0.0003863,14]
[354584178,1740581455088,-500.0,0.0003863,14]
[354584179,1740581455098,-500.0,0.0003863,14]
[354584180,1740581455114,-500.0,0.0003863,14]
[354584181,1740581455124,-958.32,0.0003863,14]
[354584182,1740581455134,-812.79,0.0003863,14]
[354584183,1740581455144,-554.2,0.0003863,14]
[354584184,1740581455153,-500.0,0.0003863,14]
[354584185,1740581455163,-500.0,0.0003863,14]
[354584186,1740581455173,-500.0,0.0003863,14]
[354584187,1740581455182,-500.0,0.0003863,14]
[354584188,1740581455192,-500.0,0.0003863,14]
[354584189,1740581455201,-500.0,0.0003863,14]
[354584190,1740581455210,-500.0,0.0003863,14]
[354584191,1740581455219,-1496.14,0.0003863,14]
[354584192,1740581455229,-626.65,0.0003863,14]
[354584193,1740581455238,-1208.59,0.0003863,14]
[354584194,1740581455247,-500.0,0.0003863,14]
[354584195,1740581455257,-500.0,0.0003863,14]
[354584196,1740581455379,-500.0,0.0003863,14]
[354584197,1740581455388,-891.22,0.0003863,14]
[354584198,1740581455398,-500.0,0.0003863,14]
[354584199,1740581455408,-500.0,0.0003863,14]
[354584200,1740581455417,-500.0,0.0003863,14]
[354584201,1740581455427,-1446.33,0.0003863,14]
[354584202,1740581455436,-826.22,0.0003863,14]
[354584203,1740581455446,-804.85,0.0003863,14]
[354584204,1740581455456,-1923.44,0.0003863,14]
[354584205,1740581455466,-523.52,0.0003863,14]
[354584206,1740581455476,-500.0,0.0003863,14]
[354584207,1740581455485,-999.89,0.0003863,14]
[354584208,1740581455495,-820.07,0.0003863,14]
[354584209,1740581455506,-500.0,0.0003863,14]
[354584210,1740581455515,-988.31,0.0003863,14]
[354584211,1740581455525,-1193.87,0.0003863,14]
[354584212,1740581455534,-826.06,0.0003863,14]
[354584213,1740581455544,-500.0,0.0003863,14]
[354584214,1740581455554,-500.0,0.0003863,14]
[354584215,1740581455563,-761.04,0.0003863,14]
[354584216,1740581455573,-500.0,0.0003863,14]
[354584217,1740581455583,-500.0,0.0003863,14]
[354584218,1740581455592,-500.0,0.0003863,14]
[354584219,1740581455602,-1525.86,0.0003863,14]
[354584220,1740581455614,-691.88,0.0003863,14]
[354584221,1740581455623,-500.0,0.0003863,14]
[354584222,1740581455632,-788.56,0.0003863,14]
[354584223,1740581455642,-500.0,0.0003863,14]
[354584224,1740581455652,-500.0,0.0003863,14]
[354584225,1740581455662,-1022.23,0.0003863,14]
[354584226,1740581455672,-594.32109018,0.0003863,14]
[354584227,1740581455682,-1392.67,0.0003863,14]
[354584228,1740581455691,-597.64,0.0003863,14]
[354584229,1740581455700,-500.0,0.0003863,14]
[354584230,1740581455711,-500.0,0.0003863,14]
[354584231,1740581455720,-847.1,0.0003863,14]
[354584232,1740581455730,-500.0,0.0003863,14]
[354584233,1740581455739,-500.0,0.0003863,14]
[354584234,1740581455748,-1018.9,0.0003863,14]
[354584235,1740581455757,-585.91,0.0003863,14]
[354584236,1740581455767,-585.19,0.0003863,14]
[354584237,1740581455776,-500.0,0.0003863,14]
[354584238,1740581455786,-837.72,0.0003863,14]
[354584239,1740581455796,-500.0,0.0003863,14]
[354584240,1740581455805,-629.47,0.0003863,14]
[354584241,1740581455814,-604.77,0.0003863,14]
[354584242,1740581455824,-1954.58,0.0003863,14]
[354584243,1740581455833,-826.65,0.0003863,14]
[354584244,1740581455843,-1358.16,0.0003863,14]
[354584245,1740581455855,-500.0,0.0003863,14]
[354584246,1740581455864,-871.04,0.0003863,14]
[354584247,1740581455874,-500.0,0.0003863,14]
[354584248,1740581455883,-1984.44,0.0003863,14]
[354584249,1740581455893,-1048.57,0.0003863,14]
[354584250,1740581455902,-500.0,0.0003863,14]
[354584251,1740581455912,-1130.4,0.0003863,14]
[354584252,1740581455924,-506.03,0.0003863,14]
[354584253,1740581455935,-500.0,0.0003863,14]
[354584254,1740581455945,-1032.56,0.0003863,14]
[354584255,1740581455955,-1228.89,0.0003863,14]
[354584256,1740581455967,-500.0,0.0003863,14]
[354584257,1740581455977,-1029.02,0.0003863,14]
[354584258,1740581455987,-500.0,0.0003863,14]
[354584259,1740581455998,-772.17,0.0003863,14]
[354584260,1740581456009,-500.0,0.0003863,14]
[354584261,1740581456019,-1573.71,0.0003863,14]
[354584262,1740581456030,-1049.22,0.0003863,14]
[354584263,1740581456041,-630.61,0.0003863,14]
[354584264,1740581456051,-810.86,0.0003863,14]
[354584265,1740581456060,-500.0,0.0003863,14]
[354584266,1740581456071,-1577.93,0.0003863,14]
[354584267,1740581456080,-500.0,0.0003863,14]
[354584268,1740581456090,-998.94,0.0003863,14]
[354584269,1740581456099,-500.0,0.0003863,14]
[354584270,1740581456112,-608.67,0.0003863,14]
[354584271,1740581456122,-527.21442775,0.0003863,14]
[354584272,1740581456132,-576.7,0.0003863,14]
[354584273,1740581456141,-500.0,0.0003863,14]
[354584274,1740581456150,-500.0,0.0003863,14]
[354584275,1740581456160,-443.96818186,0.0003863,14]
[354584276,1740581456169,-1260.73,0.0003863,14]
[354584277,1740581456179,-500.0,0.0003863,14]
[354584278,1740581456188,-500.0,0.0003863,14]
[354584279,1740581456198,-500.0,0.0003863,14]
[354584280,1740581456208,-2005.54,0.0003863,14]
[354584281,1740581456218,-500.0,0.0003863,14]
[354584282,1740581456227,-1867.96,0.0003863,14]
[354584283,1740581456237,-549.57,0.0003863,14]
[354584284,1740581456247,-1020.89,0.0003863,14]
[354584285,1740581456256,-1119.02,0.0003863,14]
[354584286,1740581456265,-3160.76,0.0003863,14]
[354584287,1740581456275,-679.9,0.0003863,14]
[354584288,1740581456284,-500.0,0.0003863,14]
[354584289,1740581456294,-515.84,0.0003863,14]
[354584290,1740581456303,-500.0,0.0003863,14]
[354584291,1740581456313,-784.88,0.0003863,14]
[354584292,1740581456322,-500.0,0.0003863,14]
[354584293,1740581456332,-1397.73,0.0003863,14]
[354584294,1740581456341,-705.96,0.0003863,14]
[354584295,1740581456350,-419.44077622,0.0003863,14]
[354584296,1740581456363,-1010.17,0.0003863,14]
[354584297,1740581456372,-812.41,0.0003863,14]
[354584298,1740581456381,-500.0,0.0003863,14]
[354584299,1740581456391,-615.05,0.0003863,14]
[354584300,1740581456400,-500.0,0.0003863,14]
[354584301,1740581456410,-500.0,0.0003863,14]
[354584302,1740581456419,-2040.78,0.0003863,14]
[354584303,1740581456428,-749.76,0.0003863,14]
[354584304,1740581456438,-555.6,0.0003863,14]
[354584305,1740581456447,-501.07621768,0.0003863,14]
[354584306,1740581456457,-1402.33,0.0003863,14]
[354584307,1740581456467,-640.17,0.0003863,14]
[354584308,1740581456476,-872.02,0.0003863,14]
[354584309,1740581456486,-930.18,0.0003863,14]
[354584310,1740581456495,-500.0,0.0003863,14]
[354584311,1740581456504,-571.65,0.0003863,14]
[354584312,1740581456514,-500.0,0.0003863,14]
[354584313,1740581456523,-668.94,0.0003863,14]
[354584314,1740581456533,-511.87,0.0003863,14]
[354584315,1740581456543,-1659.61,0.0003863,14]
[354584316,1740581456552,-500.0,0.0003863,14]
[354584317,1740581456563,-1625.09,0.0003863,14]
[354584318,1740581456573,-1613.95,0.0003863,14]
[354584319,1740581456583,-500.0,0.0003863,14]
[354584320,1740581456593,-506.24,0.0003863,14]
[354584321,1740581456607,-500.0,0.0003863,14]
[354584322,1740581456616,-1172.25,0.0003863,14]
[354584323,1740581456627,-500.0,0.0003863,14]
[354584324,1740581456637,-791.73,0.0003863,14]
[354584325,1740581456648,-500.0,0.0003863,14]
[354584326,1740581456658,-500.0,0.0003863,14]
[354584327,1740581456668,-312.37552443,0.0003863,14]
[354584328,1740581456678,-514.23322089,0.0003863,14]
[354584329,1740581456688,-500.0,0.0003863,14]
[354584330,1740581456697,-500.0,0.0003863,14]
[354584331,1740581456707,-500.0,0.0003863,14]
[354584332,1740581456716,-1017.01,0.0003863,14]
[354584333,1740581456725,-1372.91,0.0003863,14]
[354584334,1740581456734,-508.44812438,0.0003863,14]
[354584335,1740581456744,-500.0,0.0003863,14]
[354584336,1740581456754,-602.8,0.0003863,14]
[354584337,1740581456764,-500.0,0.0003863,14]
[354584338,1740581456774,-871.32,0.0003863,14]
[354584339,1740581456783,-500.0,0.0003863,14]
[354584340,1740581456792,-500.0,0.0003863,14]
[354584341,1740581456802,-1522.54,0.0003863,14]
[354584342,1740581456812,-500.0,0.0003863,14]
[354584343,1740581456822,-598.3,0.0003863,14]
[354584344,1740581456832,-500.0,0.0003863,14]
[354584345,1740581456841,-1784.31,0.0003863,14]
[354584346,1740581456852,-500.0,0.0003863,14]
[354584347,1740581456864,-500.0,0.0003863,14]
[354584348,1740581456874,-767.61,0.0003863,14]
[354584349,1740581456884,-1011.95,0.0003863,14]
[354584350,1740581456893,-500.0,0.0003863,14]
[354584351,1740581456903,-521.07,0.0003863,14]
[354584352,1740581456912,-500.0,0.0003863,14]
[354584353,1740581456923,-663.08,0.0003863,14]
[354584354,1740581456941,-500.0,0.0003863,14]
[354584355,1740581456953,-500.0,0.0003863,14]
[354584356,1740581456964,-712.61,0.0003863,14]
[354584357,1740581456976,-500.0,0.0003863,14]
[354584358,1740581456986,-2416.63,0.0003863,14]
[354584359,1740581456996,-500.0,0.0003863,14]
[354584360,1740581457007,-500.0,0.0003863,14]
[354584361,1740581457018,-818.53,0.0003863,14]
[354584362,1740581457028,-513.47989501,0.0003863,14]
[354584363,1740581457038,-500.0,0.0003863,14]
[354584364,1740581457051,-771.89,0.0003863,14]
[354584365,1740581457062,-1356.5,0.0003863,14]
[354584366,1740581457072,-500.0,0.0003863,14]
[354584367,1740581457082,-1513.24,0.0003863,14]
[354584368,1740581457091,-2923.48,0.0003863,14]
[354584369,1740581457101,-843.89,0.0003863,14]
[354584370,1740581457113,-500.0,0.0003863,14]
[354584371,1740581457123,-500.0,0.0003863,14]
[354584372,1740581457132,-500.0,0.0003863,14]
[354584373,1740581457142,-281.30543203,0.0003863,14]
[354584374,1740581457153,-500.0,0.0003863,14]
[354584375,1740581457164,-500.0,0.0003863,14]
[354584376,1740581457174,-500.0,0.0003863,14]
[354584377,1740581457184,-824.94,0.0003863,14]
[354584378,1740581457193,-1671.41,0.0003863,14]
[354584379,1740581457204,-642.37,0.0003863,14]
[354584380,1740581457215,-1126.03,0.0003863,14]
[354584381,1740581457224,-500.0,0.0003863,14]
[354584382,1740581457233,-500.0,0.0003863,14]
[354584383,1740581457243,-730.25,0.0003863,14]
[354584384,1740581457252,-1208.67,0.0003863,14]
[354584385,1740581457262,-751.18,0.0003863,14]
[354584386,1740581457272,-500.0,0.0003863,14]
[354584387,1740581457282,-500.0,0.0003863,14]
[354584388,1740581457292,-990.36,0.0003863,14]
[354584389,1740581457301,-989.75,0.0003863,14]
[354584390,1740581457311,-739.32,0.0003863,14]
[354584391,1740581457321,-842.65,0.0003863,14]
[354584392,1740581457330,-861.68,0.0003863,14]
[354584393,1740581457342,-500.0,0.0003863,14]
[354584394,1740581457352,-536.09,0.0003863,14]
[354584395,1740581457364,-500.0,0.0003863,14]
[354584396,1740581457373,-1279.79,0.0003863,14]
[354584397,1740581457383,-1284.25,0.0003863,14]
[354584398,1740581457393,-1313.58,0.0003863,14]
[354584399,1740581457402,-500.0,0.0003863,14]
[354584400,1740581457412,-500.0,0.0003863,14]
[354584401,1740581457421,-602.89372897,0.0003863,14]
[354584402,1740581457431,-1297.41,0.0003863,14]
[354584403,1740581457441,-922.65,0.0003863,14]
[354584404,1740581457450,-500.0,0.0003863,14]
[354584405,1740581457461,-500.0,0.0003863,14]
[354584406,1740581457471,-2887.49,0.0003863,14]
[354584407,1740581457481,-1041.7,0.0003863,14]
[354584408,1740581457490,-808.73,0.0003863,14]